[Event "44th Chess Olympiad Open 2022"]
[Site "Chennai"]
[Date "2022.08.06"]
[Round "8.55"]
[White "Nassr, Ali"]
[Black "Ortega Amarelle, Mariano"]
[Result "0-1"]
[WhiteElo "2263"]
[BlackElo "2463"]
[Annotator "TA"]
[PlyCount "46"]
[EventDate "2022.??.??"]
[TimeControl "60"]

{[%evp 9,46,4,15,-12,-24,-12,-8,-23,-24,-18,-14,-45,-10,-24,-7,-22,-26,-26,-23,
-43,-37,-42,-35,-59,-50,-60,-52,-68,-41,-79,-82,-89,-58,-127,-143,-138,-146,
-284,-285]} 1. d4 {[%emt 0:00:03]} Nf6 {[%emt 0:00:11]} 2. Nf3 {[%emt 0:00:13]}
d5 {[%emt 0:00:55]} 3. Bf4 {[%emt 0:00:26]} c5 {[%emt 0:03:56]} 4. e3 {[%emt 0:
00:00]} Nc6 {[%emt 0:00:55]} 5. c3 {[%emt 0:00:36]} Nh5 {[%emt 0:03:23]} 6. Bg3
{[%emt 0:02:04] D02:1 d4 d5 2 Nf3 sidelines, including 2...Nf6 3 g3 and 2...
Nf6 3 Bf4.} Nxg3 {[%emt 0:13:03]} 7. hxg3 {[%emt 0:00:24]} Qb6 {[%emt 0:00:11]}
8. Qc2 {[%emt 0:01:11] The position is equal.} g6 {[%emt 0:08:26]} 9. Nbd2 {
[%emt 0:04:39]} Bg7 {[%emt 0:01:13]} 10. Qb3 {[%emt 0:17:01]} e6 {[%emt 0:00:
00]} 11. Be2 {[%emt 0:05:22] [#]} O-O $146 {[%emt 0:04:41]} ({Predecessor:} 
11... Qc7 12. Qa3 cxd4 13. cxd4 Bf8 14. Qa4 Bd7 15. Bb5 a6 16. Rc1 Qb6 17. Bxc6
Bxc6 {0-1 (58) Kaloust,G (1422)-Sayegh,E Beirut 2015}) 12. O-O {[%emt 0:09:52]}
Rd8 {[%emt 0:01:17]} 13. Rfd1 {[%emt 0:06:28]} Bd7 {[%emt 0:04:24]} 14. Rac1 {
[%emt 0:05:14]} Qa5 {[%emt 0:11:47]} 15. dxc5 {[%emt 0:03:04]} Qxc5 {[%emt 0:
00:00]} 16. Qc2 {[%emt 0:00:14]} Rac8 {[%emt 0:01:32]} 17. Nb3 {[%emt 0:04:55]}
Qe7 {[%emt 0:00:47]} 18. e4 {[%emt 0:00:31]} Be8 {[%emt 0:17:20][%cal Yd5d4]}
19. Qb1 {[%emt 0:13:10]} Bh6 {[%emt 0:04:05]} 20. Nbd2 {[%emt 0:05:01]} Kg7 {
[%emt 0:08:23] aiming for ...dxe4.} 21. b3 {[%emt 0:08:17]} (21. exd5 $15 Rxd5
22. b4) 21... dxe4 $17 {[%emt 0:00:13] Black is more active.} 22. Qxe4 {
[%emt 0:00:13]} f5 {[%emt 0:00:08]} 23. Qc2 {[%emt 0:01:54]} (23. Qb1 $17)
23... e5 {[%emt 0:00:08] Weighted Error Value: White=0.25 (precise) /Black=0.
07 (flawless)} 0-1

[Event "44th Chess Olympiad Open 2022"]
[Site "Chennai"]
[Date "2022.08.06"]
[Round "8.55"]
[White "Djabri, Massinas"]
[Black "Mirulla, David"]
[Result "1-0"]
[WhiteElo "2206"]
[BlackElo "1953"]
[Annotator "NA RC"]
[PlyCount "53"]
[EventDate "2022.??.??"]
[TimeControl "60"]

1. d4 {[%emt 0:00:05]} Nf6 {[%emt 0:00:07]} 2. c4 {[%emt 0:00:03]} g6 {[%emt 0:
00:00]} 3. Nc3 {[%emt 0:00:07]} Bg7 {[%emt 0:00:09]} 4. e4 {[%emt 0:00:06]} d6
{[%emt 0:00:10]} 5. Be2 {[%emt 0:00:05]} O-O {[%emt 0:02:11]} 6. Nf3 {[%emt 0:
00:00]} e5 {[%emt 0:00:36]} 7. O-O {[%emt 0:00:06]} Nc6 {[%emt 0:00:29]} 8. d5
{[%emt 0:00:20]} Ne7 {[%emt 0:00:08]} 9. Ne1 {[%emt 0:00:17]} Nd7 {[%emt 0:00:
00]} 10. Nd3 {[%emt 0:00:36]} f5 {[%emt 0:00:16]} 11. f3 {[%emt 0:00:08]} f4 {
[%emt 0:11:16]} 12. Bd2 {[%emt 0:00:49]} g5 {[%emt 0:04:57]} 13. b4 {[%emt 0:
00:00]} Rf6 {[%emt 0:13:18]} 14. c5 {[%emt 0:10:17]} Rh6 {[%emt 0:12:07]} 15.
Rc1 {[%emt 0:08:21]} Qe8 {[%emt 0:06:20]} 16. Nf2 {[%emt 0:04:15]} dxc5 {
[%emt 0:25:33]} 17. Nb5 {[%emt 0:04:06]} Nf6 {[%emt 0:03:44]} 18. Nxc7 {
[%emt 0:02:41]} Qh5 {[%emt 0:01:06]} 19. h3 {[%emt 0:00:52]} Rb8 {[%emt 0:00:
00]} 20. Rxc5 {[%emt 0:12:28]} Ng6 {[%emt 0:02:01]} 21. Ng4 {[%emt 0:06:00]}
Nh4 {[%emt 0:02:42]} 22. Nxh6+ {[%emt 0:01:57]} Qxh6 {[%emt 0:00:20]} 23. Ne6 {
[%emt 0:00:16]} Bf8 {[%emt 0:01:07]} 24. Qc2 {[%emt 0:10:05]} Bxc5+ {[%emt 0:
00:00]} 25. Qxc5 {[%emt 0:00:06]} Nd7 {[%emt 0:03:14]} 26. Qd6 {[%emt 0:04:09]}
Qf6 {[%emt 0:00:48]} 27. Rc1 {[%emt 0:00:33]} 1-0

[Event "44th Chess Olympiad Open 2022"]
[Site "Chennai"]
[Date "2022.08.06"]
[Round "8.55"]
[White "Rodriguez Guevara, Celia M."]
[Black "Araoun, Saadi"]
[Result "1/2-1/2"]
[WhiteElo "1859"]
[BlackElo "2049"]
[Annotator "NA"]
[PlyCount "83"]
[EventDate "2022.??.??"]
[TimeControl "60"]

1. e4 {[%emt 0:00:02]} c6 {[%emt 0:00:05]} 2. d4 {[%emt 0:00:11]} d5 {[%emt 0:
00:00]} 3. exd5 {[%emt 0:00:11]} cxd5 {[%emt 0:00:06]} 4. Bd3 {[%emt 0:00:14]}
Nc6 {[%emt 0:00:07]} 5. c3 {[%emt 0:00:15]} Nf6 {[%emt 0:00:05]} 6. h3 {
[%emt 0:00:10]} e5 {[%emt 0:00:35]} 7. dxe5 {[%emt 0:01:53]} Nxe5 {[%emt 0:00:
00]} 8. Bc2 {[%emt 0:04:41]} Bd6 {[%emt 0:02:30]} 9. Nf3 {[%emt 0:00:46]} O-O {
[%emt 0:00:48]} 10. O-O {[%emt 0:00:52]} h6 {[%emt 0:01:48]} 11. Nbd2 {[%emt 0:
00:00]} Bc7 {[%emt 0:03:09]} 12. Nxe5 {[%emt 0:03:37]} Bxe5 {[%emt 0:00:10]}
13. Nf3 {[%emt 0:01:21]} Bc7 {[%emt 0:00:15]} 14. Re1 {[%emt 0:06:36]} Be6 {
[%emt 0:05:44]} 15. Qd3 {[%emt 0:09:25]} Ne4 {[%emt 0:11:21]} 16. Be3 {[%emt 0:
00:00]} Qd7 {[%emt 0:06:01]} 17. Bd4 {[%emt 0:12:17]} Rfe8 {[%emt 0:14:45]} 18.
Be5 {[%emt 0:16:41]} Bb6 {[%emt 0:03:23]} 19. Bd4 {[%emt 0:00:39]} Bc7 {
[%emt 0:05:42]} 20. Be5 {[%emt 0:00:13]} Rad8 {[%emt 0:05:46]} 21. Bxc7 {
[%emt 0:03:12]} Qxc7 {[%emt 0:00:02]} 22. Nd4 {[%emt 0:01:02]} Bc8 {[%emt 0:00:
00]} 23. Rad1 {[%emt 0:05:18]} a6 {[%emt 0:03:08]} 24. Bb3 {[%emt 0:02:53]} Qc5
{[%emt 0:11:55]} 25. Re3 {[%emt 0:00:58]} Qd6 {[%emt 0:04:37]} 26. Nf3 {
[%emt 0:07:54]} Qg6 {[%emt 0:07:13]} 27. Qf1 {[%emt 0:00:00]} Be6 {[%emt 0:00:
00]} 28. Red3 {[%emt 0:00:00]} Nc5 {[%emt 0:00:18]} 29. Rd4 {[%emt 0:00:00]}
Nxb3 {[%emt 0:02:36]} 30. axb3 {[%emt 0:00:00]} Rc8 {[%emt 0:00:12]} 31. R1d2 {
[%emt 0:00:00]} Qf6 {[%emt 0:02:13]} 32. b4 {[%emt 0:00:00]} Bxh3 {[%emt 0:00:
00]} 33. gxh3 {[%emt 0:00:00]} Qxf3 {[%emt 0:00:09]} 34. R4d3 {[%emt 0:00:00]}
Qf6 {[%emt 0:00:53]} 35. Rxd5 {[%emt 0:00:00]} Re4 {[%emt 0:00:26]} 36. Rd6 {
[%emt 0:00:00]} Qg5+ {[%emt 0:00:58]} 37. Qg2 {[%emt 0:00:03]} Re1+ {[%emt 0:
00:00]} 38. Kh2 {[%emt 0:00:01]} Qe5+ {[%emt 0:00:48]} 39. Qg3 {[%emt 0:00:06]}
Qe4 {[%emt 0:00:30]} 40. Qg2 {[%emt 0:00:05]} Qe5+ {[%emt 0:00:13]} 41. Qg3 {
[%emt 0:30:01]} Qe4 {[%emt 0:18:44]} 42. Qg2 {[%emt 0:00:00]} 1/2-1/2

[Event "44th Chess Olympiad Open 2022"]
[Site "Chennai"]
[Date "2022.08.06"]
[Round "8.55"]
[White "Teixeira, Gil"]
[Black "Brahami, Lamine"]
[Result "0-1"]
[WhiteElo "1741"]
[BlackElo "2189"]
[Annotator "NA RC"]
[PlyCount "116"]
[EventDate "2022.??.??"]
[TimeControl "60"]

1. e4 {[%emt 0:00:02]} c5 {[%emt 0:00:07]} 2. Bc4 {[%emt 0:00:25]} e6 {[%emt 0:
00:00]} 3. Nc3 {[%emt 0:00:24]} Nc6 {[%emt 0:00:34]} 4. Nf3 {[%emt 0:00:59]}
Be7 {[%emt 0:01:12]} 5. a3 {[%emt 0:00:26]} Nf6 {[%emt 0:00:19]} 6. d3 {
[%emt 0:00:30]} O-O {[%emt 0:00:14]} 7. O-O {[%emt 0:00:06]} d6 {[%emt 0:03:12]
} 8. Ba2 {[%emt 0:02:41]} a6 {[%emt 0:00:47]} 9. Ne2 {[%emt 0:00:38]} b5 {
[%emt 0:00:28]} 10. c3 {[%emt 0:00:24]} a5 {[%emt 0:01:50]} 11. Be3 {[%emt 0:
00:00]} a4 {[%emt 0:04:02]} 12. Ng3 {[%emt 0:01:09]} Qc7 {[%emt 0:06:22]} 13.
d4 {[%emt 0:02:08]} Na5 {[%emt 0:10:58]} 14. b4 {[%emt 0:05:47]} axb3 {[%emt 0:
00:00]} 15. Bxb3 {[%emt 0:02:59]} Nxb3 {[%emt 0:02:47]} 16. Qxb3 {[%emt 0:00:
00]} Bb7 {[%emt 0:01:44]} 17. Nd2 {[%emt 0:01:20]} Bc6 {[%emt 0:00:47]} 18. f3
{[%emt 0:00:53]} Ra4 {[%emt 0:00:56]} 19. Rfc1 {[%emt 0:00:30]} c4 {[%emt 0:00:
00]} 20. Qb2 {[%emt 0:00:43]} Rfa8 {[%emt 0:00:12]} 21. Nb1 {[%emt 0:00:55]}
Nd7 {[%emt 0:02:12]} 22. Rd1 {[%emt 0:02:25]} d5 {[%emt 0:03:18]} 23. e5 {
[%emt 0:11:36]} Qa7 {[%emt 0:01:27]} 24. f4 {[%emt 0:00:47]} b4 {[%emt 0:04:09]
} 25. Bc1 {[%emt 0:03:11]} bxa3 {[%emt 0:00:43]} 26. Qe2 {[%emt 0:01:32]} a2 {
[%emt 0:03:21]} 27. Nd2 {[%emt 0:00:42]} Qa5 {[%emt 0:04:11]} 28. Qf3 {[%emt 0:
00:00]} g6 {[%emt 0:01:43]} 29. Rf1 {[%emt 0:00:38]} Rb8 {[%emt 0:02:56]} 30.
Ne2 {[%emt 0:01:09]} Nb6 {[%emt 0:04:11]} 31. g4 {[%emt 0:00:13]} Bd7 {[%emt 0:
00:00]} 32. Qg3 {[%emt 0:02:15]} Kh8 {[%emt 0:08:55]} 33. Kh1 {[%emt 0:03:04]}
Qa8 {[%emt 0:01:18]} 34. h4 {[%emt 0:00:17]} Ra7 {[%emt 0:00:55]} 35. Rg1 {
[%emt 0:00:11]} Rab7 {[%emt 0:07:13]} 36. f5 {[%emt 0:00:56]} exf5 {[%emt 0:00:
00]} 37. h5 {[%emt 0:00:41]} fxg4 {[%emt 0:00:58]} 38. Qf4 {[%emt 0:03:11]} Bf5
{[%emt 0:02:53]} 39. Ng3 {[%emt 0:00:42]} Be6 {[%emt 0:00:49]} 40. Rg2 {
[%emt 0:02:56]} g5 {[%emt 0:01:56]} 41. Qf2 {[%emt 0:30:28]} Nd7 {[%emt 0:00:
00]} 42. Kh2 {[%emt 0:00:14]} Rb1 {[%emt 0:01:12]} 43. Nxb1 {[%emt 0:00:08]}
axb1=Q {[%emt 0:00:08]} 44. Rxa8 {[%emt 0:01:42]} Rxa8 {[%emt 0:00:05]} 45. Qb2
{[%emt 0:01:18]} Qxb2 {[%emt 0:00:56]} 46. Rxb2 {[%emt 0:01:08]} h6 {[%emt 0:
00:00]} 47. Kg2 {[%emt 0:01:13]} Ra3 {[%emt 0:01:22]} 48. Ne2 {[%emt 0:01:49]}
Bf5 {[%emt 0:00:45]} 49. Bd2 {[%emt 0:01:02]} Rb3 {[%emt 0:00:21]} 50. Ra2 {
[%emt 0:02:09]} Be4+ {[%emt 0:00:48]} 51. Kg3 {[%emt 0:00:28]} Ba3 {[%emt 0:00:
00]} 52. Kxg4 {[%emt 0:00:38]} Rb2 {[%emt 0:02:03]} 53. Rxb2 {[%emt 0:01:10]}
Bxb2 {[%emt 0:00:06]} 54. Ng3 {[%emt 0:01:28]} Bd3 {[%emt 0:00:48]} 55. Kf3 {
[%emt 0:01:49]} Nb6 {[%emt 0:00:25]} 56. Nh1 {[%emt 0:01:18]} Be4+ {[%emt 0:00:
00]} 57. Kg4 {[%emt 0:01:04]} Bxh1 {[%emt 0:00:09]} 58. Kf5 {[%emt 0:00:09]}
Kg7 {[%emt 0:00:22]} 0-1

[Event "44th Chess Olympiad Open 2022"]
[Site "Chennai"]
[Date "2022.08.06"]
[Round "8.56"]
[White "Husbands, Orlando"]
[Black "Mansour, Sameer"]
[Result "1-0"]
[WhiteElo "2353"]
[BlackElo "2275"]
[Annotator "TA"]
[PlyCount "137"]
[EventDate "2022.??.??"]
[TimeControl "60"]

{[%evp 24,137,42,18,11,11,13,12,18,13,20,13,14,14,12,0,9,0,11,16,23,19,29,38,
46,44,56,50,67,56,54,62,83,51,68,41,33,30,42,10,41,30,30,0,18,0,0,0,8,8,8,8,26,
8,8,0,4,0,8,0,55,55,63,36,45,19,41,60,564,573,535,565,511,513,520,509,455,376,
363,334,293,261,662,654,611,548,527,527,1044,735,1149,1104,29961,29965,29961,
29964,29964,29966,29959,29966,29965,29966,29970,29971,29973,29974,29976,29977,
29973,29960,29982,29983,29983,29984,29984,29984]} 1. e4 {[%emt 0:00:07]} c5 {
[%emt 0:00:29]} 2. Nf3 {[%emt 0:00:44]} Nc6 {[%emt 0:00:09]} 3. d4 {[%emt 0:00:
00]} cxd4 {[%emt 0:00:08]} 4. Nxd4 {[%emt 0:00:09]} g6 {[%emt 0:00:11]} 5. c4 {
[%emt 0:00:36]} Nf6 {[%emt 0:00:28]} 6. Nc3 {[%emt 0:00:10]} d6 {[%emt 0:00:30]
} 7. Be2 {[%emt 0:00:47]} Nxd4 {[%emt 0:00:25]} 8. Qxd4 {[%emt 0:00:12]} Bg7 {
[%emt 0:00:02]} 9. Be3 {[%emt 0:04:33]} O-O {[%emt 0:00:22]} 10. Qd2 {[%emt 0:
00:00]} Be6 {[%emt 0:01:35]} 11. O-O {[%emt 0:02:36]} Qa5 {[%emt 0:00:16]} 12.
Rfc1 $1 {[%emt 0:10:55] now scores much better than the old 12.Rac1.} Rfc8 {
[%emt 0:00:46]} 13. f3 {[%emt 0:01:25]} Bxc4 {[%emt 0:14:42] B36: Sicilian:
Maroczy Bind: Gurgenidze System.} 14. Nd5 $1 {[%emt 0:02:28]} Qxd2 {[%emt 0:00:
49]} 15. Nxe7+ {[%emt 0:00:08]} Kf8 {[%emt 0:00:25] The position is equal.} 16.
Bxd2 {[%emt 0:00:05]} Kxe7 {[%emt 0:00:52]} 17. Rxc4 {[%emt 0:00:00]} (17. Bxc4
{feels hotter.} Nxe4 18. fxe4 Bxb2 19. Bd5) 17... Rxc4 {[%emt 0:00:00]} 18.
Bxc4 {[%emt 0:00:03]} Nd7 {[%emt 0:00:29]} 19. Bg5+ {[%emt 0:04:57]} Bf6 {
[%emt 0:03:32]} 20. Bxf6+ {[%emt 0:06:56] [#]} Kxf6 $146 {[%emt 0:02:15]
Endgame KRB-KRN} ({Predecessor:} 20... Nxf6 21. Rd1 Rc8 22. Bb3 Nd7 23. Kf2 Rc5
24. h4 b5 25. Ke3 Ne5 26. g3 Nc4+ 27. Bxc4 Rxc4 28. Rd4 Rc2 29. Rd2 Rc1 30. Rd5
a6 31. Rd2 {½-½ (31) Kveinys,A (2541)-Heberla,B (2541) Poland 2016}) 21. Bb5
{[%emt 0:06:01]} Nc5 {[%emt 0:09:57]} 22. Rc1 {[%emt 0:03:10]} a5 {[%emt 0:04:
02]} 23. Kf2 {[%emt 0:02:41]} a4 {[%emt 0:11:18]} 24. Ke3 {[%emt 0:02:28]} Ra5
{[%emt 0:00:18]} 25. Bc4 {[%emt 0:00:50]} g5 {[%emt 0:00:00]} 26. Rd1 {[%emt 0:
06:40]} Ke7 {[%emt 0:03:02]} 27. Rd5 {[%emt 0:07:58]} f6 {[%emt 0:00:39]} 28.
h4 {[%emt 0:00:03]} h6 {[%emt 0:01:33]} 29. hxg5 {[%emt 0:00:00]} hxg5 {
[%emt 0:00:08]} 30. Rd1 {[%emt 0:00:49]} Nd7 {[%emt 0:05:21]} 31. Rh1 {[%emt 0:
04:34]} Nf8 {[%emt 0:02:42]} 32. b4 {[%emt 0:07:11]} axb3 $1 {[%emt 0:00:14]}
33. axb3 {[%emt 0:00:02]} Ra2 {[%emt 0:01:36]} 34. Bd5 {[%emt 0:02:04]} Rxg2 {
[%emt 0:03:07]} 35. Bxb7 {[%emt 0:01:49]} g4 {[%emt 0:00:00]} 36. Bd5 {[%emt 0:
01:35]} gxf3 {[%emt 0:04:12]} 37. Kxf3 {[%emt 0:00:24]} Rb2 {[%emt 0:00:04]}
38. Rg1 {[%emt 0:01:03]} Ne6 {[%emt 0:01:02]} 39. Ra1 {[%emt 0:01:16] [#]
Hoping for Ra7+.} Nc7 {[%emt 0:09:27]} 40. Bc4 {[%emt 0:00:00]} Kd7 {[%emt 0:
10:00]} 41. Ke3 {[%emt 0:30:45]} Kc6 {[%emt 0:30:23]} (41... Rh2 $11) 42. Rf1
$14 {[%emt 0:00:20]} Ne8 {[%emt 0:03:58]} 43. Kd4 {[%emt 0:00:00] White is
more active.} Rh2 {[%emt 0:00:00]} 44. Rc1 {[%emt 0:00:00]} Kd7 {[%emt 0:00:00]
} 45. Bb5+ {[%emt 0:00:00]} Ke7 $2 {[%emt 0:00:00] This move loses the game
for Black.} (45... Kd8 $1 $14) 46. Rc8 $18 {[%emt 0:00:00]} Ng7 {[%emt 0:00:00]
} 47. Rc7+ {[%emt 0:00:00]} Kf8 {[%emt 0:00:00] Threatens to win with ...Ne6+.}
48. Bc4 {[%emt 0:00:00] Prevents Ne6+.} Rd2+ {[%emt 0:00:00]} 49. Kc3 {[%emt 0:
00:00]} Rg2 {[%emt 0:00:00]} 50. Rf7+ {[%emt 0:00:00]} Ke8 {[%emt 0:00:00]} 51.
Rxf6 {[%emt 0:00:00]} Kd7 {[%emt 0:00:00]} 52. Bd5 {[%emt 0:00:00] aiming for
b4.} Kc7 $2 {[%emt 0:00:00]} (52... Rg5 53. b4 Nh5 54. Rf7+ Ke8) 53. Rf7+ {
[%emt 0:00:00]} Kb6 {[%emt 0:00:00]} 54. Rb7+ {[%emt 0:00:00]} Ka6 {[%emt 0:00:
00]} 55. Rd7 {[%emt 0:00:00]} Rg6 {[%emt 0:00:00]} 56. Bf7 {[%emt 0:00:00]}
Rg3+ {[%emt 0:00:00]} 57. Kd4 {[%emt 0:00:00]} Kb6 {[%emt 0:00:54]} 58. Rxd6+ {
[%emt 0:00:00] White mates.} Kc7 {[%emt 0:00:02]} 59. Rg6 {[%emt 0:00:00]} Rxg6
{[%emt 0:00:29]} 60. Bxg6 {[%emt 0:00:00] KB-KN} Ne6+ {[%emt 0:00:09]} 61. Ke5
{[%emt 0:00:00]} Nc5 {[%emt 0:00:22] [#]} 62. Bf7 $1 {[%emt 0:00:00]} Nd7+ {
[%emt 0:01:21]} 63. Kd5 {[%emt 0:00:00]} Nf6+ {[%emt 0:02:09]} 64. Kd4 {
[%emt 0:00:00]} Nd7 {[%emt 0:00:00]} 65. e5 {[%emt 0:00:00][%cal Ye4e5,Ye5e6]}
Nb6 {[%emt 0:00:17]} 66. Be6 {[%emt 0:00:00]} Na8 {[%emt 0:00:17]} 67. Kc5 {
[%emt 0:00:00]} Nb6 {[%emt 0:00:10]} 68. Bh3 {[%emt 0:00:00]} Na8 {[%emt 0:00:
24]} 69. e6 {[%emt 0:00:00] Weighted Error Value: White=0.11 (very precise) /
Black=0.51} 1-0

[Event "44th Chess Olympiad Open 2022"]
[Site "Chennai"]
[Date "2022.08.06"]
[Round "8.56"]
[White "Ahmad, Al Khatib"]
[Black "Blackman, Justin"]
[Result "1-0"]
[WhiteElo "2244"]
[BlackElo "2195"]
[Annotator "RC"]
[PlyCount "91"]
[EventDate "2022.??.??"]
[TimeControl "60"]

1. e4 {[%emt 0:00:03]} c5 {[%emt 0:00:06]} 2. Nf3 {[%emt 0:00:05]} d6 {[%emt 0:
00:00]} 3. d4 {[%emt 0:00:06]} cxd4 {[%emt 0:00:05]} 4. Nxd4 {[%emt 0:00:04]}
Nf6 {[%emt 0:00:06]} 5. Nc3 {[%emt 0:00:04]} a6 {[%emt 0:00:05]} 6. Be2 {
[%emt 0:00:14]} e5 {[%emt 0:00:12]} 7. Nb3 {[%emt 0:00:07]} Be7 {[%emt 0:00:07]
} 8. O-O {[%emt 0:00:08]} O-O {[%emt 0:00:06]} 9. Kh1 {[%emt 0:00:16]} Nc6 {
[%emt 0:00:17]} 10. f4 {[%emt 0:00:19]} exf4 {[%emt 0:00:12]} 11. Bxf4 {
[%emt 0:00:07]} Be6 {[%emt 0:00:09]} 12. Qe1 {[%emt 0:00:56]} Ne8 {[%emt 0:00:
00]} 13. Qg3 {[%emt 0:03:34]} Bh4 {[%emt 0:00:21]} 14. Qe3 {[%emt 0:00:15]} Qe7
{[%emt 0:07:58]} 15. Rad1 {[%emt 0:05:36]} Rc8 {[%emt 0:20:55]} 16. Rd2 {
[%emt 0:21:27]} Bf6 {[%emt 0:06:27]} 17. Rfd1 {[%emt 0:06:47]} Ne5 {[%emt 0:00:
00]} 18. Nd4 {[%emt 0:03:56]} Ng6 {[%emt 0:13:23]} 19. g3 {[%emt 0:11:21]} Be5
{[%emt 0:08:06]} 20. Bf3 {[%emt 0:20:43]} Nf6 {[%emt 0:02:52]} 21. Nf5 {
[%emt 0:08:25]} Bxf5 {[%emt 0:03:24]} 22. exf5 {[%emt 0:00:12]} Bxf4 {[%emt 0:
00:00]} 23. Qxe7 {[%emt 0:00:08]} Nxe7 {[%emt 0:00:02]} 24. gxf4 {[%emt 0:00:
00]} Nxf5 {[%emt 0:07:01]} 25. Bxb7 {[%emt 0:01:20]} Rb8 {[%emt 0:00:05]} 26.
Bxa6 {[%emt 0:01:15]} Rxb2 {[%emt 0:00:08]} 27. Bd3 {[%emt 0:01:05]} Ne7 {
[%emt 0:02:49]} 28. a4 {[%emt 0:01:45]} Rc8 {[%emt 0:01:45]} 29. Nb5 {[%emt 0:
00:00]} d5 {[%emt 0:00:09]} 30. Ra1 {[%emt 0:01:29]} Nc6 {[%emt 0:00:28]} 31.
a5 {[%emt 0:01:38]} Nb4 {[%emt 0:02:39]} 32. Nd4 {[%emt 0:08:52]} Nxd3 {
[%emt 0:01:41]} 33. Rxd3 {[%emt 0:00:06]} Ne4 {[%emt 0:00:22]} 34. Rb3 {
[%emt 0:01:06]} Rxb3 {[%emt 0:02:28]} 35. cxb3 {[%emt 0:00:26]} Kf8 {[%emt 0:
00:00]} 36. b4 {[%emt 0:01:41]} Ke7 {[%emt 0:00:20]} 37. b5 {[%emt 0:00:16]}
Kd6 {[%emt 0:00:48]} 38. b6 {[%emt 0:01:50]} Nc5 {[%emt 0:00:36]} 39. Rc1 {
[%emt 0:01:05]} Ra8 {[%emt 0:01:16]} 40. Nb5+ {[%emt 0:00:19]} Kc6 {[%emt 0:00:
00]} 41. Nd4+ {[%emt 0:30:06]} Kd6 {[%emt 0:30:15]} 42. Nf5+ {[%emt 0:00:00]}
Kc6 {[%emt 0:00:00]} 43. b7 {[%emt 0:00:00]} Rb8 {[%emt 0:00:00]} 44. a6 {
[%emt 0:00:00]} Kb6 {[%emt 0:00:00]} 45. Rxc5 {[%emt 0:00:00]} Kxa6 {[%emt 0:
00:00]} 46. Nd6 {[%emt 0:00:00]} 1-0

[Event "44th Chess Olympiad Open 2022"]
[Site "Chennai"]
[Date "2022.08.06"]
[Round "8.56"]
[White "Ibrahim Alwahsh"]
[Black "Parsons, Justin"]
[Result "1/2-1/2"]
[WhiteElo "2058"]
[BlackElo "1749"]
[Annotator "NA RC"]
[PlyCount "101"]
[EventDate "2022.??.??"]
[TimeControl "60"]

1. Nf3 {[%emt 0:00:22]} Nf6 {[%emt 0:00:21]} 2. g3 {[%emt 0:00:06]} d5 {
[%emt 0:00:18]} 3. Bg2 {[%emt 0:00:05]} e6 {[%emt 0:01:46]} 4. O-O {[%emt 0:00:
00]} b6 {[%emt 0:00:25]} 5. b3 {[%emt 0:00:29]} Be7 {[%emt 0:01:13]} 6. Bb2 {
[%emt 0:00:13]} Nbd7 {[%emt 0:00:26]} 7. d3 {[%emt 0:01:18]} Bb7 {[%emt 0:00:
00]} 8. Nbd2 {[%emt 0:00:18]} O-O {[%emt 0:00:39]} 9. e3 {[%emt 0:03:55]} c5 {
[%emt 0:00:26]} 10. Qe2 {[%emt 0:01:04]} Qc7 {[%emt 0:04:39]} 11. c4 {[%emt 0:
00:00]} Rad8 {[%emt 0:01:57]} 12. Rac1 {[%emt 0:03:28]} Qb8 {[%emt 0:07:17]}
13. Rfd1 {[%emt 0:03:16]} Qa8 {[%emt 0:11:41]} 14. Ne1 {[%emt 0:06:41]} Rfe8 {
[%emt 0:16:17]} 15. f4 {[%emt 0:11:29]} Bd6 {[%emt 0:00:00]} 16. e4 {[%emt 0:
00:00]} e5 {[%emt 0:00:00]} 17. exd5 {[%emt 0:21:08]} exf4 {[%emt 0:00:48]} 18.
Ne4 {[%emt 0:03:32]} fxg3 {[%emt 0:02:22]} 19. hxg3 {[%emt 0:02:22]} Nxe4 {
[%emt 0:08:09]} 20. dxe4 {[%emt 0:01:24]} Bxg3 {[%emt 0:00:14]} 21. Bxg7 {
[%emt 0:06:55]} Kxg7 {[%emt 0:06:50]} 22. Qg4+ {[%emt 0:00:08]} Kh8 {[%emt 0:
00:00]} 23. Qxg3 {[%emt 0:00:07]} Rg8 {[%emt 0:01:38]} 24. Qc3+ {[%emt 0:00:54]
} f6 {[%emt 0:01:01]} 25. Rd3 {[%emt 0:02:08]} Qb8 {[%emt 0:02:07]} 26. Rh3 {
[%emt 0:02:41]} Rg6 {[%emt 0:02:29]} 27. Nf3 {[%emt 0:02:17]} Rdg8 {[%emt 0:00:
00]} 28. Nh4 {[%emt 0:00:10]} Rg4 {[%emt 0:04:38]} 29. Rf1 {[%emt 0:00:51]} Qf8
{[%emt 0:06:18]} 30. Qe3 {[%emt 0:05:00]} Qg7 {[%emt 0:02:37]} 31. Rf2 {
[%emt 0:00:08]} Ne5 {[%emt 0:01:04]} 32. Kh1 {[%emt 0:02:24]} Bc8 {[%emt 0:00:
00]} 33. Qe2 {[%emt 0:10:29]} Rg3 {[%emt 0:07:51]} 34. Rxg3 {[%emt 0:03:25]}
Qxg3 {[%emt 0:00:08]} 35. Nf5 {[%emt 0:00:28]} Bxf5 {[%emt 0:00:14]} 36. Rxf5 {
[%emt 0:00:37]} Ng4 {[%emt 0:00:14]} 37. Kg1 {[%emt 0:02:15]} Qh2+ {[%emt 0:00:
00]} 38. Kf1 {[%emt 0:00:03]} Ne3+ {[%emt 0:00:32]} 39. Qxe3 {[%emt 0:00:49]}
Qxg2+ {[%emt 0:00:08]} 40. Ke1 {[%emt 0:00:13]} Rg3 {[%emt 0:03:35]} 41. Qe2 {
[%emt 0:06:14]} Qh3 {[%emt 0:01:36]} 42. Kd2 {[%emt 0:02:07]} Rg2 {[%emt 0:00:
00]} 43. Rf2 {[%emt 0:01:03]} Rg1 {[%emt 0:00:43]} 44. Qf3 {[%emt 0:03:57]}
Qh6+ {[%emt 0:02:57]} 45. Qf4 {[%emt 0:00:37]} Qxf4+ {[%emt 0:00:52]} 46. Rxf4
{[%emt 0:00:09]} Kg7 {[%emt 0:01:18]} 47. d6 {[%emt 0:05:55]} Rg2+ {[%emt 0:00:
00]} 48. Kd1 {[%emt 0:00:52]} Rg3 {[%emt 0:00:34]} 49. Kd2 {[%emt 0:00:58]}
Rg2+ {[%emt 0:00:08]} 50. Kd1 {[%emt 0:00:09]} Rg3 {[%emt 0:00:10]} 51. Kd2 {
[%emt 0:00:06]} 1/2-1/2